bitfinex-derivatives/quotes_BTCF0:USTF0_20250119
["timestamp","ask_amount","ask_price","bid_price","bid_amount"]
[1737271056108,0.47559206,105440.0,105430.0,0.087797]
[1737271057016,0.408293,105440.0,105430.0,0.087797]
[1737271057209,0.40829,105440.0,105430.0,0.087797]
[1737271059620,0.40829,105440.0,105430.0,0.087796]
[1737271060319,0.47558906,105440.0,105430.0,0.087796]
[1737271063220,0.47558906,105440.0,105430.0,0.09967263]
[1737271063422,0.61773787,105440.0,105430.0,0.09967263]
[1737271065315,0.60012451,105440.0,105430.0,0.09967263]
[1737271066220,0.77008776,105440.0,105430.0,0.09967263]
[1737271066415,0.77008776,105440.0,105430.0,0.05217663]
[1737271066613,0.77008776,105440.0,105430.0,0.09967163]
[1737271069312,0.77008776,105440.0,105430.0,0.05217663]
[1737271069512,0.77008776,105440.0,105430.0,0.09967563]
[1737271069721,0.40928776,105440.0,105430.0,0.05217663]
[1737271069923,0.77008776,105440.0,105430.0,0.09967263]
[1737271072026,0.77008776,105440.0,105430.0,0.087796]
[1737271072227,0.77008776,105440.0,105430.0,0.05217657]
[1737271072819,0.77008776,105440.0,105430.0,0.09967257]
[1737271075830,0.77008776,105440.0,105420.0,0.37382683]
[1737271076019,0.4579837,105430.0,105420.0,0.39540367]
[1737271076331,0.4579837,105430.0,105420.0,0.28302346]
[1737271076332,0.5076694,105430.0,105420.0,0.28302346]
[1737271076516,0.5851694,105430.0,105420.0,0.28302346]
[1737271076924,0.047504,105420.0,105410.0,0.33962815]
[1737271077229,0.5472754,105420.0,105410.0,0.33962815]
[1737271077727,0.047507,105410.0,105400.0,7.597e-05]
[1737271077933,0.5354927,105410.0,105400.0,7.597e-05]
[1737271078930,0.70618708,105410.0,105400.0,7.597e-05]
[1737271079331,0.72385087,105410.0,105400.0,7.597e-05]
[1737271080034,0.86600446,105410.0,105400.0,7.597e-05]
[1737271081330,0.87575327,105410.0,105400.0,7.597e-05]
[1737271081536,0.86600446,105410.0,105400.0,7.597e-05]
[1737271081729,0.79865497,105410.0,105400.0,7.597e-05]
[1737271082445,0.62796059,105410.0,105400.0,7.597e-05]
[1737271082931,0.55046059,105410.0,105400.0,0.04758697]
[1737271084039,0.55046059,105410.0,105400.0,0.11493646]
[1737271084335,0.18966059,105410.0,105400.0,0.11493646]
[1737271085036,0.047507,105410.0,105400.0,0.11493646]
[1737271085736,0.047507,105410.0,105400.0,0.04758697]
[1737271086035,0.408307,105410.0,105400.0,0.04758697]
[1737271087237,0.408307,105410.0,105400.0,0.05707289]
[1737271087433,0.408307,105410.0,105400.0,0.00956189]
[1737271087738,0.47565649,105410.0,105400.0,7.597e-05]
[1737271087933,0.448707,105410.0,105400.0,7.597e-05]
[1737271088930,0.448707,105410.0,105400.0,0.04758897]
[1737271090535,0.51605649,105410.0,105400.0,0.04758897]
[1737271090743,0.51605649,105410.0,105400.0,7.597e-05]
[1737271093836,0.448707,105410.0,105400.0,7.597e-05]
[1737271094041,0.51605649,105410.0,105400.0,7.597e-05]
[1737271094843,0.55675649,105410.0,105400.0,7.597e-05]
[1737271095744,0.69891008,105410.0,105400.0,7.597e-05]
[1737271097330,0.7085453,105410.0,105400.0,7.597e-05]
[1737271098258,0.56639171,105410.0,105400.0,7.597e-05]
[1737271099740,0.7085453,105410.0,105400.0,7.597e-05]
[1737271103937,0.047518,105390.0,105380.0,0.78484392]
[1737271104138,0.408318,105390.0,105380.0,0.78484392]
[1737271104538,0.408318,105390.0,105380.0,0.27440392]
[1737271104939,0.76919397,105390.0,105380.0,0.27440392]
[1737271105449,0.76919397,105390.0,105380.0,0.047522]
[1737271105450,0.91134756,105390.0,105380.0,0.047522]
[1737271110147,0.95164756,105390.0,105380.0,0.047522]
[1737271110850,0.047521,105380.0,105370.0,0.24718744]
[1737271111054,0.408321,105380.0,105370.0,0.25907051]
[1737271112246,0.408321,105380.0,105370.0,0.24718744]
[1737271113048,0.408321,105380.0,105370.0,0.2590703]
[1737271114547,0.408321,105380.0,105370.0,0.24718744]
[1737271114743,0.408321,105380.0,105370.0,0.47406936]
[1737271115849,0.408321,105380.0,105370.0,0.48595217]
[1737271116049,0.408321,105380.0,105370.0,0.25907025]
[1737271116756,0.3608,105380.0,105370.0,0.25907025]
[1737271117051,0.3608,105380.0,105370.0,0.25907017]
[1737271117355,0.3608,105380.0,105370.0,0.24145327]
[1737271117851,0.408326,105380.0,105370.0,0.24145327]
[1737271119055,0.50302956,105390.0,105370.0,0.60225327]
[1737271119358,0.17069438,105400.0,105390.0,0.047518]
[1737271119656,0.17069438,105400.0,105390.0,0.46993224]
[1737271119843,0.17069438,105400.0,105390.0,0.22803224]
[1737271120048,0.62874097,105400.0,105390.0,0.18051424]
[1737271120245,0.62874097,105400.0,105390.0,0.18051308]
[1737271121160,0.45804659,105400.0,105390.0,0.18051308]
[1737271121363,0.408314,105400.0,105390.0,0.13078049]
[1737271121855,0.408314,105400.0,105390.0,0.1189]
[1737271122248,0.408314,105400.0,105390.0,0.17829915]
[1737271122651,0.408314,105400.0,105390.0,0.166418]
[1737271122857,0.47566281,105400.0,105390.0,0.31746307]
[1737271123057,0.47566281,105400.0,105390.0,0.22688192]
[1737271123261,0.51596281,105400.0,105390.0,0.22688192]
[1737271124165,0.047519,105390.0,105380.0,0.27440492]
[1737271124464,0.408319,105390.0,105380.0,0.28628731]
[1737271125961,0.408319,105390.0,105380.0,0.28628732]
[1737271126663,0.47566781,105390.0,105380.0,0.28628732]
[1737271126869,0.408319,105390.0,105380.0,0.27440492]
[1737271128264,0.47566781,105390.0,105380.0,0.27440492]
[1737271128556,0.408319,105390.0,105380.0,0.27440492]
[1737271138073,0.41779755,105390.0,105380.0,0.27440492]
[1737271139971,0.41779755,105390.0,105380.0,0.22688192]
[1737271140868,0.41779755,105390.0,105380.0,0.27440492]
[1737271141373,0.46753235,105390.0,105380.0,0.27440492]
[1737271144170,0.46753235,105390.0,105380.0,0.32413972]
[1737271144871,0.41779755,105390.0,105380.0,0.32413972]
[1737271145078,0.46753235,105390.0,105380.0,0.32413972]
[1737271145479,0.41779755,105390.0,105380.0,0.32413972]
[1737271148884,0.41779755,105390.0,105380.0,0.27440492]
[1737271150075,0.56021042,105390.0,105380.0,0.27440492]
[1737271151370,0.56021042,105390.0,105380.0,0.32413972]
[1737271152776,0.7309048,105390.0,105380.0,0.6084499]
[1737271153579,0.59764425,105410.0,105400.0,0.047514]
[1737271153580,0.78492225,105410.0,105400.0,0.047514]
[1737271153766,0.78492225,105410.0,105400.0,0.1091292]
[1737271154169,0.42412225,105410.0,105400.0,0.4699292]
[1737271154369,0.66410374,105430.0,105400.0,0.5174432]
[1737271154573,0.66410374,105430.0,105420.0,0.0972398]
[1737271155374,0.61660174,105430.0,105420.0,0.0972398]
[1737271155682,0.4580318,105440.0,105430.0,0.0475]
[1737271156382,0.4580318,105440.0,105430.0,0.0972348]
[1737271157276,0.408297,105440.0,105430.0,0.0972348]
[1737271157582,0.408297,105440.0,105430.0,0.21751724]
[1737271158777,0.408297,105440.0,105430.0,0.28481473]
[1737271159082,0.408297,105440.0,105430.0,0.21751724]
[1737271159279,0.408297,105440.0,105430.0,0.28481473]
[1737271160783,0.3608,105440.0,105430.0,0.28481473]
[1737271161782,0.3608,105440.0,105430.0,0.29412277]
[1737271162183,0.3608,105440.0,105430.0,0.12410553]
[1737271163086,0.3608,105440.0,105430.0,0.29412277]
[1737271163477,0.408299,105440.0,105430.0,0.17932528]
[1737271163770,0.408299,105440.0,105430.0,0.29412677]
[1737271164784,0.447899,105440.0,105430.0,0.29412677]
[1737271165282,0.447899,105440.0,105430.0,0.12410953]
[1737271165483,0.808699,105440.0,105430.0,0.12410953]
[1737271168077,0.808699,105440.0,105430.0,0.06729749]
[1737271168278,0.047503,105430.0,105420.0,0.28482173]
[1737271168479,0.408303,105430.0,105420.0,0.28482173]
[1737271169192,0.447803,105430.0,105420.0,0.28482173]
[1737271169780,0.489703,105430.0,105420.0,0.11480449]
[1737271170188,0.489703,105430.0,105420.0,0.12420851]
[1737271176790,0.489703,105430.0,105420.0,0.00940402]
[1737271176994,0.489703,105430.0,105410.0,0.51170565]
[1737271177187,0.3608,105420.0,105410.0,0.34168841]
[1737271177582,0.408308,105420.0,105410.0,0.34168841]
[1737271177782,0.408308,105420.0,105410.0,0.22688192]
[1737271178083,0.408308,105420.0,105410.0,0.34169141]
[1737271178590,0.408308,105420.0,105410.0,0.28463709]
[1737271180992,0.408308,105420.0,105410.0,0.51151901]
[1737271181295,0.489704,105430.0,105420.0,0.047508]
[1737271181493,0.489704,105430.0,105420.0,0.11480549]
[1737271181793,0.489704,105430.0,105420.0,0.28463309]
[1737271183002,0.489704,105430.0,105420.0,0.51151501]
[1737271184085,0.489704,105430.0,105420.0,0.44421752]
[1737271185001,0.489704,105430.0,105420.0,0.39670952]
[1737271185501,0.489704,105430.0,105420.0,0.22688192]
[1737271186402,0.55700149,105430.0,105420.0,0.22688192]
[1737271187102,0.489704,105430.0,105420.0,0.22688192]
[1737271187491,0.489704,105430.0,105420.0,0.17045183]
[1737271189910,0.489704,105430.0,105420.0,0.28525732]
[1737271190806,0.489704,105430.0,105420.0,0.34168741]
[1737271193009,0.489704,105430.0,105420.0,0.27438992]
[1737271193212,0.489704,105430.0,105420.0,0.34168741]
[1737271196312,0.489704,105430.0,105420.0,0.62599759]
[1737271197511,0.3608,105430.0,105420.0,0.11480549]
[1737271197706,0.3608,105430.0,105420.0,0.19530549]
[1737271198414,0.408303,105430.0,105420.0,0.19530549]
[1737271198610,0.408303,105430.0,105420.0,0.89084644]
[1737271200404,0.408303,105430.0,105420.0,0.90051869]
[1737271201217,0.408303,105430.0,105420.0,0.82001869]
[1737271201407,0.488303,105430.0,105420.0,0.82001869]
[1737271202417,0.488303,105430.0,105420.0,0.99994073]
[1737271203325,0.488303,105430.0,105420.0,1.04744873]
[1737271203516,0.488303,105430.0,105420.0,0.99994073]
[1737271204312,0.488303,105430.0,105420.0,0.99026848]
[1737271204508,0.488303,105430.0,105420.0,0.92297099]
[1737271205313,0.488303,105430.0,105420.0,0.39804594]
[1737271208221,0.49769391,105430.0,105420.0,0.39804594]
[1737271209210,0.49769391,105430.0,105420.0,0.1706159]
[1737271210717,0.5649914,105430.0,105420.0,0.1706159]
[1737271219431,0.54740055,105430.0,105420.0,0.1706159]
[1737271224941,0.047508,105420.0,105410.0,0.49526458]
[1737271225139,0.408308,105420.0,105410.0,0.49526458]
[1737271225847,0.408308,105420.0,105410.0,0.32464868]
[1737271227943,0.45801464,105420.0,105410.0,0.32464868]
[1737271228436,0.45801464,105420.0,105410.0,0.27494204]
[1737271228631,0.45801464,105420.0,105410.0,0.32464868]
[1737271233632,0.45801464,105420.0,105410.0,0.60895886]
[1737271234735,0.45801464,105420.0,105410.0,1.02631115]
[1737271235341,0.45801464,105420.0,105410.0,0.97879915]
[1737271235936,0.45801464,105420.0,105410.0,0.75136911]
[1737271239939,0.50772128,105420.0,105410.0,0.70166247]
[1737271240132,0.55042128,105420.0,105410.0,0.70166247]
[1737271241443,0.047513,105410.0,105400.0,0.17060381]
[1737271241638,0.54081964,105410.0,105400.0,0.17060381]
[1737271241839,0.491113,105410.0,105400.0,0.22031045]
[1737271242445,0.491113,105410.0,105400.0,0.4477822]
[1737271243447,0.54081964,105410.0,105400.0,0.4477822]
[1737271243743,0.54081964,105410.0,105400.0,0.27717839]
[1737271244148,0.75701964,105410.0,105400.0,0.27717839]
[1737271245245,0.75701964,105410.0,105400.0,0.44759498]
[1737271245444,0.577,105410.0,105400.0,0.49511198]
[1737271245644,0.577,105410.0,105400.0,0.57801198]
[1737271245849,0.3608,105410.0,105400.0,0.57801198]
[1737271246050,0.3608,105410.0,105400.0,0.5898924]
[1737271246348,0.40831,105420.0,105410.0,0.047512]
[1737271246548,0.40831,105420.0,105410.0,0.09721864]
[1737271247740,0.40831,105420.0,105410.0,0.32431887]
[1737271249651,0.3608,105420.0,105410.0,0.32431887]
[1737271249836,0.27384316,105460.0,105420.0,0.047509]
[1737271249837,0.408297,105450.0,105420.0,0.047509]
[1737271250150,0.408297,105450.0,105440.0,0.09720664]
[1737271250948,0.46767593,105450.0,105440.0,0.09720664]
[1737271251445,0.46767593,105450.0,105440.0,0.0475]
[1737271251851,0.0475,105440.0,105430.0,0.62590115]
[1737271252050,0.4083,105440.0,105430.0,0.62590115]
[1737271252748,0.4083,105440.0,105430.0,0.45571087]
[1737271253554,0.4083,105440.0,105430.0,0.47330185]
[1737271254252,0.3608,105440.0,105430.0,0.47330185]
[1737271256558,0.408298,105450.0,105430.0,0.47330185]
[1737271256854,0.408298,105450.0,105430.0,0.6431978]
[1737271258857,0.408298,105450.0,105440.0,0.16989595]
[1737271259858,0.408298,105450.0,105430.0,0.6431978]
[1737271261952,0.408298,105450.0,105430.0,0.41609757]
[1737271263059,0.408298,105450.0,105430.0,0.6431978]
[1737271265361,0.408298,105450.0,105430.0,0.41609757]
[1737271265751,0.408298,105450.0,105440.0,0.11479662]
[1737271271853,0.408298,105450.0,105440.0,0.047499]
[1737271272055,0.408298,105450.0,105440.0,0.21739495]
[1737271272256,0.408298,105450.0,105440.0,0.16989595]
[1737271273061,0.047499,105440.0,105430.0,0.5117958]
[1737271273263,0.408299,105440.0,105430.0,0.5117958]
[1737271273457,0.408299,105440.0,105430.0,0.4466804]
[1737271273762,0.538099,105440.0,105430.0,0.4466804]
[1737271273961,0.58778322,105440.0,105430.0,0.4466804]
[1737271274162,0.538099,105440.0,105430.0,0.4466804]
[1737271274358,0.538099,105440.0,105430.0,0.21958017]
[1737271274560,0.58778322,105440.0,105430.0,0.16989595]
[1737271274964,0.047504,105430.0,105420.0,0.22710023]
[1737271275151,0.45798822,105430.0,105420.0,0.22710023]
[1737271275464,0.67418822,105430.0,105420.0,0.22710023]
[1737271275665,0.67418822,105430.0,105410.0,0.22710023]
[1737271275852,0.45799222,105420.0,105410.0,0.22710023]
[1737271276858,0.047513,105410.0,105400.0,0.27678445]
[1737271277054,0.45799722,105410.0,105400.0,0.22710023]
[1737271277467,0.47566423,105410.0,105400.0,0.22710023]
[1737271277661,0.69186423,105410.0,105400.0,0.22710023]
[1737271278070,0.047518,105400.0,105390.0,0.22710023]
[1737271278375,0.408318,105400.0,105390.0,0.22710023]
[1737271279463,0.408318,105400.0,105380.0,0.80489146]
[1737271279464,0.3608,105400.0,105380.0,0.80489146]
[1737271279663,0.408323,105390.0,105380.0,0.80489146]
[1737271279858,0.408323,105390.0,105380.0,0.73754023]
[1737271280669,0.408323,105390.0,105380.0,0.51044]
[1737271284871,0.769123,105390.0,105380.0,0.51044]
[1737271288261,0.047527,105380.0,105370.0,0.25202287]
[1737271288462,0.408327,105380.0,105370.0,0.25202287]
[1737271296980,0.408327,105380.0,105370.0,0.18467164]
[1737271297488,0.408327,105380.0,105370.0,0.2344158]
[1737271298380,0.26571616,105380.0,105370.0,0.2344158]
[1737271299580,0.31324316,105380.0,105370.0,0.2344158]
[1737271302584,0.31324316,105380.0,105370.0,0.46151603]
[1737271302979,0.31324316,105380.0,105370.0,0.41177187]
[1737271303184,0.31324316,105380.0,105370.0,0.46151603]
[1737271303779,0.31324316,105380.0,105370.0,0.47637133]
[1737271304485,0.31324316,105380.0,105370.0,0.46151603]
[1737271304886,0.31324316,105380.0,105370.0,0.93177384]
[1737271305985,0.31324316,105380.0,105370.0,0.98709181]
[1737271307384,0.31324316,105380.0,105370.0,1.48080319]
[1737271308395,0.31324316,105380.0,105370.0,0.98709181]
[1737271310689,0.31324316,105380.0,105370.0,1.48172568]
[1737271317100,0.31324316,105380.0,105370.0,1.49360993]
[1737271317506,0.31324316,105380.0,105370.0,1.50846524]
[1737271323699,0.408327,105380.0,105370.0,1.50846524]
[1737271326598,0.408327,105380.0,105370.0,1.01383137]
[1737271328102,0.408327,105380.0,105370.0,1.01383135]
[1737271333610,0.408327,105380.0,105370.0,1.00194712]
[1737271333814,0.408327,105380.0,105370.0,1.01383135]
[1737271334816,0.408327,105380.0,105370.0,0.99897604]
[1737271335511,0.408327,105380.0,105370.0,0.98709181]
[1737271335706,0.408327,105380.0,105370.0,0.99897604]
[1737271339314,0.408327,105380.0,105370.0,0.98709181]
[1737271339514,0.408327,105380.0,105370.0,0.99897604]
[1737271340326,0.047527,105380.0,105370.0,0.99897604]
[1737271341314,0.047527,105380.0,105370.0,1.49258532]
[1737271341820,0.047527,105380.0,105370.0,1.85338526]
[1737271343923,0.09727116,105380.0,105370.0,1.4428411]
[1737271344220,0.047527,105380.0,105370.0,1.49258526]
[1737271344625,0.047527,105380.0,105370.0,1.49258533]
[1737271345328,0.047527,105380.0,105370.0,1.85338533]
[1737271345627,0.047527,105380.0,105370.0,0.94672762]
[1737271346216,0.047527,105380.0,105370.0,1.85396325]
[1737271349531,0.047527,105380.0,105370.0,1.85396309]
[1737271352737,0.047527,105380.0,105370.0,1.51433494]
[1737271352924,0.047527,105380.0,105370.0,1.46459078]
[1737271353126,0.09604416,105390.0,105370.0,1.46459078]
[1737271354038,0.047527,105380.0,105370.0,1.46459078]
[1737271354734,0.047527,105380.0,105370.0,1.80664475]
[1737271356229,0.06321042,105420.0,105380.0,0.047518]
[1737271356230,0.37426626,105420.0,105380.0,0.047518]
[1737271356437,0.06097126,105420.0,105410.0,0.09725316]
[1737271356938,0.06097126,105420.0,105410.0,0.32509133]
[1737271357133,0.11071542,105420.0,105410.0,0.27534717]
[1737271357330,0.11071542,105420.0,105410.0,0.36344717]
[1737271358027,0.11071542,105420.0,105410.0,0.83429882]
[1737271358731,0.47151542,105420.0,105410.0,0.69868982]
[1737271359033,0.52125958,105420.0,105410.0,0.69868982]
[1737271359435,0.47151542,105420.0,105410.0,0.69868982]
[1737271359636,0.52125958,105420.0,105410.0,0.69868982]
[1737271359836,0.47151542,105420.0,105410.0,0.69868982]
[1737271360233,0.52125958,105420.0,105410.0,0.22726266]
[1737271361436,0.52125958,105420.0,105400.0,0.22726266]
[1737271361740,0.45805316,105410.0,105400.0,0.22726266]
[1737271362540,0.45805316,105410.0,105390.0,0.69782154]
[1737271362743,0.45805716,105400.0,105390.0,0.69782154]
[1737271363142,0.408313,105400.0,105390.0,0.69782154]
[1737271363639,0.408313,105400.0,105390.0,1.12113436]
[1737271366542,0.047513,105400.0,105390.0,1.48193436]
[1737271366747,0.04751,105410.0,105400.0,0.047513]
[1737271366944,0.04751,105410.0,105400.0,0.09725716]
[1737271367145,0.04751,105410.0,105400.0,0.45805716]
[1737271367448,0.04751,105410.0,105400.0,0.32451982]
[1737271368043,0.04751,105410.0,105400.0,0.68531982]
[1737271368238,0.04751,105410.0,105400.0,0.32451982]
[1737271369849,0.04751,105410.0,105400.0,1.03024519]
[1737271370243,0.04751,105410.0,105400.0,1.39104519]
[1737271370840,0.37426626,105420.0,105400.0,1.11626953]
[1737271371045,0.06097126,105420.0,105410.0,0.09725316]
[1737271371246,0.06097126,105420.0,105410.0,0.22905316]
[1737271371952,0.047505,105420.0,105410.0,0.45625545]
[1737271374654,0.047505,105420.0,105410.0,0.81705545]
[1737271374848,0.047503,105430.0,105410.0,0.81705545]
[1737271375152,0.047503,105430.0,105420.0,0.04974416]
[1737271376055,0.047503,105430.0,105420.0,0.27694645]
[1737271377449,0.047503,105430.0,105420.0,0.04974416]
[1737271378056,0.09724716,105430.0,105420.0,0.04974416]
[1737271378456,0.09724716,105430.0,105420.0,0.27694645]
[1737271379357,0.09724716,105430.0,105420.0,0.04974416]
[1737271379667,0.047504,105420.0,105410.0,0.7504644]
[1737271380459,0.047504,105420.0,105410.0,0.46566668]
[1737271383851,0.0475,105430.0,105410.0,0.82870184]
[1737271384058,0.0475,105430.0,105420.0,0.50779132]
[1737271384256,0.0475,105430.0,105420.0,0.5196701]
[1737271384965,0.047495,105440.0,105430.0,0.047497]
[1737271385165,0.0571042,105450.0,105440.0,0.047494]
[1737271385360,0.0571042,105450.0,105440.0,0.11476853]
[1737271385755,0.0571042,105450.0,105440.0,0.3420248]
[1737271386065,0.04749,105450.0,105440.0,0.3420248]
[1737271387262,0.04749,105450.0,105440.0,0.27475027]
[1737271388660,0.04749,105450.0,105440.0,0.63555027]
[1737271389562,0.04749,105450.0,105440.0,0.58805627]
[1737271390667,0.04749,105450.0,105440.0,0.22725627]
[1737271391861,0.04749,105450.0,105440.0,0.2945308]
[1737271392671,0.04749,105450.0,105440.0,0.22725627]
[1737271393371,0.47556453,105450.0,105440.0,0.22725627]
[1737271393665,0.54209,105450.0,105440.0,0.22725627]
[1737271393860,0.60936453,105450.0,105440.0,0.22725627]
[1737271395260,0.047498,105430.0,105420.0,0.57932852]
[1737271395561,0.408298,105430.0,105420.0,0.57932852]
[1737271396659,0.408298,105430.0,105420.0,0.46480538]
[1737271397060,0.408298,105430.0,105420.0,0.50930538]
[1737271397265,0.047498,105430.0,105420.0,0.55680838]
[1737271397473,0.047498,105430.0,105420.0,0.3865338]
[1737271399266,0.047498,105430.0,105420.0,0.67133152]
[1737271400369,0.047498,105430.0,105420.0,1.08860595]
[1737271403977,0.047498,105430.0,105420.0,1.04110295]
[1737271405373,0.047498,105430.0,105420.0,1.49336656]
[1737271405573,0.047498,105430.0,105420.0,1.48148912]
[1737271405776,0.047498,105430.0,105420.0,1.49336662]
[1737271406178,0.047498,105430.0,105420.0,1.26611035]
[1737271406372,0.047498,105430.0,105420.0,1.26611012]
[1737271407078,0.047498,105430.0,105420.0,1.21643127]
[1737271407278,0.047498,105430.0,105420.0,1.26611012]
[1737271407777,0.60122406,105450.0,105420.0,1.26611012]
[1737271407982,0.047497,105440.0,105430.0,0.09507885]
[1737271409683,0.047497,105440.0,105430.0,0.32242568]
[1737271411472,0.047497,105440.0,105430.0,0.36992568]
[1737271411880,0.047497,105440.0,105430.0,0.42770293]
[1737271412077,0.047497,105440.0,105430.0,0.41582568]
[1737271412282,0.047497,105440.0,105430.0,0.42770292]
[1737271413187,0.047497,105440.0,105430.0,0.89867368]
[1737271413777,0.047497,105440.0,105430.0,1.25947368]
[1737271414081,0.047497,105440.0,105430.0,1.25947343]
[1737271415486,0.047497,105440.0,105430.0,1.31672984]
[1737271415880,0.047497,105440.0,105430.0,1.31672912]
[1737271416187,0.047497,105440.0,105430.0,0.95592912]
[1737271416383,0.047497,105440.0,105430.0,0.95592913]
[1737271416588,0.047497,105440.0,105430.0,0.95366165]
[1737271417176,0.047497,105440.0,105430.0,0.86026165]
[1737271417377,0.408297,105440.0,105430.0,0.85065285]
[1737271417588,0.09717585,105440.0,105430.0,0.800974]
[1737271417890,0.09717585,105440.0,105430.0,0.74327959]
[1737271418486,0.047497,105440.0,105430.0,0.79295844]
[1737271418892,0.05873462,105440.0,105430.0,0.79295844]
[1737271421688,0.41953462,105440.0,105430.0,0.79295844]
[1737271422686,0.41953462,105440.0,105430.0,0.74327959]
[1737271423086,0.46921347,105440.0,105430.0,0.74327959]
[1737271423390,0.46921347,105440.0,105430.0,0.69787959]
[1737271423585,0.60561347,105440.0,105430.0,0.69787959]
[1737271424890,0.60561347,105440.0,105430.0,0.51207571]
[1737271425092,0.60561347,105440.0,105430.0,0.22771599]
[1737271425899,0.55593462,105440.0,105430.0,0.22771599]
[1737271426200,0.60561347,105440.0,105430.0,0.22771599]
[1737271427493,0.55593462,105440.0,105430.0,0.22771599]
[1737271427690,0.60561347,105440.0,105430.0,0.22771599]
[1737271428097,0.55593462,105440.0,105430.0,0.22771599]
[1737271428297,0.60561347,105440.0,105430.0,0.22771599]
[1737271428514,0.65529232,105440.0,105430.0,1.7e-07]
[1737271428695,0.60561347,105440.0,105430.0,1.7e-07]
[1737271428896,0.95529232,105440.0,105430.0,1.7e-07]
[1737271429496,0.047509,105410.0,105400.0,0.37595972]
[1737271429801,0.047509,105410.0,105400.0,0.32885972]
[1737271429802,0.45798785,105410.0,105400.0,0.32885972]
[1737271430301,0.46922547,105410.0,105400.0,0.32885972]
[1737271430689,0.46922547,105410.0,105400.0,0.0445]
[1737271431302,0.48689607,105410.0,105400.0,0.0445]
[1737271431501,0.047514,105400.0,105390.0,0.37295972]
[1737271431702,0.408314,105400.0,105390.0,0.43084161]
[1737271431904,0.41955162,105400.0,105390.0,0.1346]
[1737271434706,0.41955162,105400.0,105390.0,0.18212]
[1737271435107,0.41955162,105400.0,105390.0,0.1346]
[1737271436706,0.41955162,105400.0,105390.0,0.182118]
[1737271438800,0.41955162,105400.0,105390.0,0.1346]
[1737271440710,0.48690107,105400.0,105390.0,0.1346]
[1737271443012,0.41955162,105400.0,105390.0,0.1346]
[1737271445913,0.48690107,105400.0,105390.0,0.1346]
[1737271446114,0.48690107,105400.0,105380.0,0.37048396]
[1737271446312,0.12610407,105390.0,105380.0,0.00968396]
[1737271446514,0.047521,105380.0,105370.0,0.78015972]
[1737271446715,0.047521,105380.0,105370.0,0.79204257]
[1737271447312,0.05875862,105380.0,105370.0,0.78015972]
[1737271447514,0.05875862,105380.0,105370.0,0.41935972]
[1737271447727,0.05875862,105380.0,105370.0,0.42894294]
[1737271447920,0.05875862,105380.0,105370.0,0.14458322]
[1737271448409,0.05875862,105380.0,105370.0,0.25945867]
[1737271454412,0.05875862,105380.0,105370.0,0.27134259]
[1737271455017,0.05875862,105380.0,105370.0,0.22381659]
[1737271455223,0.05875862,105380.0,105370.0,0.21423337]
[1737271456820,0.41955862,105380.0,105370.0,0.21423337]
[1737271457214,0.41955862,105380.0,105370.0,0.22908838]
[1737271457623,0.41955862,105380.0,105370.0,0.16173893]
[1737271457821,0.41955862,105380.0,105370.0,0.02673893]
[1737271458015,0.41955862,105380.0,105360.0,0.72209857]
[1737271458016,0.48690807,105380.0,105360.0,0.68835972]
[1737271458217,0.047526,105370.0,105360.0,0.70024428]
[1737271458418,0.05876362,105370.0,105360.0,0.70024428]
[1737271458816,0.05876362,105370.0,105360.0,0.71510005]
[1737271459920,0.05876362,105370.0,105360.0,0.78244958]
[1737271460122,0.05876362,105370.0,105360.0,1.16464022]
[1737271460319,0.05876362,105370.0,105360.0,1.09729077]
[1737271461523,0.05876362,105370.0,105360.0,0.73649077]
[1737271462325,0.05876362,105370.0,105360.0,0.06994041]
[1737271465620,0.06819525,105370.0,105360.0,0.05805577]
[1737271465820,0.42899525,105370.0,105360.0,0.06994069]
[1737271466127,0.42899525,105370.0,105360.0,0.01485577]
[1737271466528,0.04753,105360.0,105350.0,1.21381837]
[1737271466729,0.40833,105360.0,105350.0,1.22570443]
[1737271466920,0.40833,105360.0,105350.0,1.196985]
[1737271467121,0.41956762,105360.0,105350.0,1.196985]
[1737271467329,0.41956762,105360.0,105350.0,0.85493087]
[1737271467529,0.41956762,105360.0,105350.0,0.85493118]
[1737271468729,0.41956762,105360.0,105350.0,0.57057146]
[1737271469129,0.41956762,105360.0,105350.0,0.63792091]
[1737271470232,0.41956762,105360.0,105350.0,0.05997146]
[1737271470430,0.41956762,105360.0,105350.0,0.05051639]
[1737271471337,0.41956762,105360.0,105350.0,0.03863002]
[1737271472035,0.41956762,105360.0,105340.0,0.53304617]
[1737271472226,0.047536,105350.0,105340.0,0.54493296]
[1737271472627,0.047536,105350.0,105340.0,0.58356524]
[1737271472931,0.05877362,105350.0,105340.0,0.96756773]
[1737271473137,0.05877362,105350.0,105340.0,0.96756782]
[1737271474449,0.05877362,105350.0,105340.0,0.97694416]
[1737271475146,0.05877362,105350.0,105340.0,0.97694437]
[1737271476148,0.01123762,105350.0,105340.0,0.97694437]
[1737271476652,0.01123762,105350.0,105340.0,0.97715429]
[1737271477955,0.05877262,105350.0,105340.0,0.97715429]
[1737271480656,0.05877262,105350.0,105340.0,0.92663492]
[1737271480953,0.05877262,105350.0,105340.0,0.97715467]
[1737271483054,0.01123762,105350.0,105340.0,0.97715467]
[1737271483556,0.01123762,105350.0,105340.0,0.95956856]
[1737271483942,0.05877462,105350.0,105340.0,0.95956856]
[1737271484554,0.05877462,105350.0,105340.0,0.95956868]
[1737271486357,0.05877462,105350.0,105340.0,0.95956867]
[1737271488356,0.05877462,105350.0,105340.0,0.95956859]
[1737271488750,0.05877462,105350.0,105340.0,0.90980525]
[1737271488950,0.05877462,105350.0,105340.0,0.95956859]
[1737271489567,0.05877462,105350.0,105340.0,0.90980525]
[1737271489857,0.41957462,105350.0,105340.0,0.89076822]
[1737271490262,0.41957462,105350.0,105340.0,0.85213547]
[1737271490652,0.41957462,105350.0,105340.0,0.89967647]
[1737271491258,0.41957462,105350.0,105340.0,0.45915208]
[1737271491259,0.37203762,105350.0,105340.0,0.45915208]
[1737271492158,0.01123762,105350.0,105340.0,0.45915208]
[1737271492459,0.01123762,105350.0,105340.0,0.4710398]
[1737271492761,0.01123762,105350.0,105340.0,0.50967365]
[1737271493463,0.01123762,105350.0,105340.0,0.28183583]
[1737271493654,0.01123762,105350.0,105340.0,0.94877059]
[1737271494158,0.01123762,105350.0,105340.0,0.94877011]
[1737271497057,0.01123762,105350.0,105340.0,1.32858936]
[1737271497258,0.01123762,105350.0,105340.0,0.96778936]
[1737271498365,0.01123762,105350.0,105340.0,1.32858936]
[1737271498767,0.01123762,105350.0,105340.0,1.67064349]
[1737271499667,0.01123762,105350.0,105340.0,1.67064089]
[1737271499864,0.01123762,105350.0,105340.0,1.84118458]
[1737271500065,0.81648387,105370.0,105340.0,1.84118458]
[1737271500268,0.81648387,105370.0,105350.0,0.09730034]